fUSD/lending_fUSD_20251006
["ID","MTS","AMOUNT","RATE_DAILY","PERIOD"]
[389628602,1759758632494,-500.0,0.00014973,2]
[389628603,1759758632503,-500.0,0.00014973,2]
[389628604,1759758632513,-500.54427269,0.00014973,2]
[389628605,1759758632522,-500.0,0.00014973,2]
[389628607,1759758632531,-500.0,0.00014973,2]
[389628609,1759758632540,-500.0,0.00014973,2]
[389628610,1759758632550,-500.0,0.00014973,2]
[389628612,1759758632559,-501.29828573,0.00014973,2]
[389628614,1759758632569,-506.3617594,0.00014973,2]
[389628616,1759758632579,-500.68988614,0.00014973,2]
[389628618,1759758632595,-1211.66997425,0.00014999,5]
[389628620,1759758632606,-77877.83461986,0.00015,2]
[389628622,1759758632619,-943.29775045,0.00015,2]
[389628624,1759758632630,-18306.4363468,0.00015,2]
[389628627,1759758632642,-778.54212568,0.00015,2]
[389628630,1759758632665,-62279.99999999,0.00015,2]
[389628632,1759758632676,-12236.58383731,0.00015,2]
[389628634,1759758632687,-1459.41560526,0.00015,2]
[389628648,1759758632802,-37335.0,0.00015,2]
[389628650,1759758632814,-1390.06814635,0.00015,2]
[389628653,1759758632825,-4808.82070651,0.00015,2]
[389628659,1759758632877,-256.90481207,0.000142,2]
[389628661,1759758632886,-109444.49841039,0.00015,2]
[389628787,1759758637949,-500.0,0.00013866,2]
[389628788,1759758637958,-220.5662654,0.00013866,2]
[389628789,1759758637968,-453.91453154,0.000142,2]
[389628790,1759758637980,-46.08546846,0.000142,2]
[389628791,1759758637991,-197.7717762,0.000142,2]
[389628792,1759758638000,-429.06008098,0.000142,2]
[389628793,1759758638349,-6.416028,0.000142,2]
[389628794,1759758638360,-4582.96505395,0.00015,2]
[389628795,1759758638453,-63211.04694437,0.00015,2]
[389628796,1759758638621,-7673.56228164,0.00015,2]
[389628797,1759758638634,-3071.36432793,0.00015,2]
[389628798,1759758638647,-1310.0,0.00015,2]
[389628804,1759758640043,-2500.0,0.00015,2]
[389628805,1759758640293,-5002.0893,0.00015,2]
[389628806,1759758640304,-5500.80000005,0.00015,2]
[389628807,1759758640342,-402.76142451,0.00015,2]
[389628818,1759758643194,-1000.0898523,0.00015,2]
[389628819,1759758643206,-3104.20831643,0.00015,2]
[389628820,1759758643225,-1000.0,0.00015,2]
[389628821,1759758643277,-1138.26709642,0.00015,2]
[389628822,1759758643339,-6898.76152945,0.00015,2]
[389628823,1759758643355,-23543.17773953,0.00015,2]
[389628938,1759758646039,-347.06476318,0.00015,2]
[389628939,1759758646050,-4682.80726825,0.00015,2]
[389628940,1759758646210,-7729.08328734,0.00015,2]
[389628941,1759758646222,-3964.48314527,0.00015,2]
[389628942,1759758646330,-1996.51182708,0.00015,2]
[389628943,1759758646342,-6603.58778545,0.00015,2]
[389628944,1759758646387,-125860.5434966,0.00015,2]
[389628989,1759759165024,1800.0,0.00012,2]
[389628990,1759759178451,4726.83313374,0.00012,2]
[389628991,1759759188310,5287.76030276,0.000115,2]
[389628992,1759759188334,9985.4065635,0.000115,2]
[389628993,1759759200985,5014.5934365,0.000115,2]
[389628994,1759759201007,14985.4065635,0.000115,2]
[389628996,1759759297357,14.5934365,0.000115,2]
[389628997,1759759297380,9985.4065635,0.000115,2]
[389629006,1759759598135,-150.0,0.000135,2]
[389629007,1759759598159,-7.25115549,0.000135,2]
[389629020,1759759832371,-192.74884451,0.000135,2]
[389629021,1759759832380,-170.85607359,0.00013759,2]
[389629022,1759759832390,-2500.0,0.00013795,2]
[389629023,1759759832399,-416.3843548,0.00013859,2]
[389629024,1759759832409,-300.0,0.00013938,2]
[389629025,1759759832419,-300.0,0.00013938,2]
[389629026,1759759832429,-1200.0,0.00014031,2]
[389629027,1759759832438,-4424.96,0.00014032,2]
[389629028,1759759832448,-369.91,0.00014136,2]
[389629029,1759759832458,-200.0,0.00014169,2]
[389629030,1759759832467,-300.0,0.00014187,2]
[389629031,1759759832477,-605.97,0.00014268,2]
[389629032,1759759832487,-250.0,0.00014298,2]
[389629033,1759759832497,-6297.12,0.00014342,2]
[389629034,1759759832509,-2751.0,0.00014348,2]
[389629035,1759759832518,-150.0,0.000144,2]
[389629036,1759759832527,-473.35,0.00014482,2]
[389629037,1759759832536,-474.0,0.00014582,2]
[389629038,1759759832546,-666.0,0.00014653,3]
[389629039,1759759832555,-2785.34,0.00014653,2]
[389629040,1759759832565,-474.0,0.00014682,2]
[389629041,1759759832575,-150.0,0.0001473,2]
[389629042,1759759832586,-545.7,0.0001473,2]
[389629043,1759759832596,-170.69,0.0001473,2]
[389629044,1759759832606,-412.78,0.0001473,2]
[389629045,1759759832615,-150.0,0.0001473,2]
[389629046,1759759832625,-150.0,0.0001473,2]
[389629047,1759759832634,-167.88,0.0001473,2]
[389629048,1759759832644,-545.7,0.0001473,2]
[389629049,1759759832653,-150.0,0.0001473,2]
[389629050,1759759832662,-1197.76,0.0001473,2]
[389629051,1759759832671,-177.45,0.0001473,2]
[389629052,1759759832681,-545.7,0.0001473,2]
[389629053,1759759832691,-150.0,0.0001473,2]
[389629054,1759759832701,-150.0,0.0001473,2]
[389629055,1759759832710,-1319.82,0.0001473,2]
[389629056,1759759832719,-545.7,0.0001473,2]
[389629057,1759759832728,-602.08,0.0001473,2]
[389629059,1759759832738,-211.96,0.0001473,2]
[389629061,1759759832747,-154.23,0.00014756,2]
[389629063,1759759832756,-303.06,0.00014756,2]
[389629065,1759759832765,-412.85,0.00014756,2]
[389629066,1759759832774,-322.67,0.00014756,2]
[389629068,1759759832783,-150.0,0.0001477,2]
[389629070,1759759832793,-150.0,0.0001477,2]
[389629072,1759759832803,-150.0,0.0001477,2]
[389629074,1759759832812,-194.11841709,0.0001477,2]
[389629076,1759759832821,-150.0,0.0001477,2]
[389629078,1759759832830,-150.0,0.0001477,2]
[389629079,1759759832840,-150.0,0.0001477,2]
[389629081,1759759832849,-150.0,0.0001477,2]
[389629083,1759759832859,-150.0,0.0001477,2]
[389629085,1759759832868,-150.0,0.0001477,2]
[389629087,1759759832878,-150.0,0.0001477,2]
[389629089,1759759832887,-150.0,0.0001477,2]
[389629090,1759759832896,-150.0,0.0001477,2]
[389629092,1759759832905,-250.0,0.00014803,2]
[389629093,1759759832914,-369.91,0.00014843,2]
[389629094,1759759832924,-2500.0,0.0001485,2]
[389629095,1759759832933,-300.0,0.0001485,2]
[389629096,1759759832943,-300.0,0.0001485,2]
[389629097,1759759832952,-500.0,0.0001485,2]
[389629098,1759759832961,-195.0,0.0001485,2]
[389629099,1759759832971,-300.0,0.0001485,2]
[389629100,1759759832980,-500.0,0.0001485,2]
[389629101,1759759832989,-447.80490425,0.0001494,2]
[389629102,1759759832999,-500.0,0.00014985,2]
[389629103,1759759833008,-161.52371828,0.0001499,2]
[389629104,1759759833018,-1490.1111834,0.00014997,2]
[389629105,1759759833028,-451.496,0.00014997,2]
[389629106,1759759833038,-82974.65317381,0.00015,2]
[389629107,1759759833048,-1000.0,0.00015,2]
[389629108,1759759833057,-1000.0,0.00015,2]
[389629109,1759759833067,-500.0,0.00015,2]
[389629110,1759759833077,-500.0,0.00015,2]
[389629111,1759759833087,-219.75859529,0.00015,2]
[389629112,1759759833096,-184.96039921,0.00015,2]
[389629113,1759759833105,-643.0,0.00015,2]
[389629114,1759759833114,-1754.94079,0.00015,2]
[389629115,1759759833124,-161.18,0.00015001,2]
[389629116,1759759833133,-211.96,0.00015004,2]
[389629117,1759759833142,-1220.71,0.00015016,2]
[389629118,1759759833151,-474.0,0.00015016,2]
[389629119,1759759833160,-474.0,0.00015016,2]
[389629120,1759759833169,-947.44,0.00015016,2]
[389629121,1759759833178,-150.0,0.00015098,2]
[389629122,1759759833187,-150.0,0.0001518,2]
[389629123,1759759833197,-900.0,0.000152,5]
[389629124,1759759833206,-150.0,0.00015214,2]
[389629125,1759759833215,-895.6098085,0.00015262,2]
[389629126,1759759833224,-341.04,0.0001527,2]
[389629127,1759759833233,-211.96,0.00015278,2]
[389629128,1759759833243,-1800.0,0.000153,5]
[389629129,1759759833252,-150.0,0.00015317,2]
[389629130,1759759833261,-12490.95,0.00015353,2]
[389629131,1759759833270,-300.0,0.00015376,2]
[389629132,1759759833280,-2800.0,0.000154,5]
[389629133,1759759833289,-212.77,0.00015413,2]
[389629134,1759759833298,-409.0,0.0001542,2]
[389629135,1759759833307,-150.0,0.00015426,2]
[389629136,1759759833316,-12308.07,0.00015433,2]
[389629137,1759759833325,-1229.0,0.00015434,2]
[389629138,1759759833336,-370.68887098,0.0001545,2]
[389629139,1759759833345,-210.92629156,0.0001548,2]
[389629140,1759759833354,-21076.42337626,0.00015487,2]
[389629141,1759759833363,-3700.0,0.000155,5]
[389629142,1759759833373,-420.0,0.0001554,2]
[389629143,1759759833382,-369.91,0.0001555,2]
[389629144,1759759833391,-150.0,0.0001558,2]
[389629145,1759759833401,-150.0,0.0001559,2]
[389629146,1759759833410,-150.0,0.0001559,2]
[389629147,1759759833420,-150.0,0.0001559,2]
[389629148,1759759833429,-150.0,0.0001559,2]
[389629149,1759759833439,-4600.0,0.000156,5]
[389629150,1759759833448,-322.6107,0.00015614,2]
[389629151,1759759833458,-151.0,0.00015614,2]
[389629152,1759759833467,-7965.41053268,0.00015614,2]
[389629153,1759759833477,-500.0,0.00015614,2]
[389629154,1759759833487,-500.0,0.00015614,2]
[389629155,1759759833497,-300.0,0.00015614,2]
[389629156,1759759833508,-9000.0,0.00015614,2]
[389629157,1759759833518,-7591.59567682,0.00015614,2]
[389629158,1759759833527,-2000.0,0.00015614,2]
[389629159,1759759833536,-245.90998408,0.00015614,2]
[389629160,1759759833546,-722.52041113,0.00015614,2]
[389629161,1759759833556,-231.28369723,0.00015614,2]
[389629162,1759759833565,-409.0,0.00015615,2]
[389629163,1759759833577,-152.807639,0.00015616,2]
[389629164,1759759833589,-1916.76712701,0.00015645,2]
[389629165,1759759833598,-150.51,0.00015664,2]
[389629166,1759759833607,-170.24,0.00015664,2]
[389629167,1759759833616,-151.09,0.00015664,2]
[389629168,1759759833625,-770.69,0.00015664,2]
[389629169,1759759833635,-426.86,0.00015664,2]
[389629170,1759759833644,-545.61,0.00015664,2]
[389629171,1759759833653,-409.0,0.00015668,2]
[389629172,1759759833664,-8260.13072239,0.00015669,2]
[389629173,1759759833676,-900.0,0.000157,5]
[389629174,1759759833686,-500.0,0.00015712,2]
[389629175,1759759833696,-8565.75555911,0.00015724,2]
[389629176,1759759833708,-2514.57992116,0.00015747,2]
[389629177,1759759833727,-150.0,0.00015755,2]
[389629178,1759759833751,-409.0,0.00015769,2]
[389629179,1759759833768,-8882.6885148,0.00015779,2]
[389629180,1759759833779,-900.0,0.000158,5]
[389629181,1759759833789,-5425.91591018,0.00015834,2]
[389629182,1759759833799,-160.8587243,0.00015844,2]
[389629183,1759759833808,-150.0,0.00015864,2]
[389629184,1759759833818,-168.0,0.00015886,2]
[389629185,1759759833827,-1343.41471275,0.00015894,2]
[389629186,1759759833837,-168.0,0.00015899,2]
[389629187,1759759833847,-900.0,0.000159,5]
[389629188,1759759833856,-1000.0,0.000159,2]
[389629189,1759759833866,-168.0,0.00015916,2]
[389629190,1759759833876,-500.0,0.00015936,2]
[389629191,1759759833885,-233.41744203,0.00015936,2]
[389629192,1759759833895,-391.61207419,0.00015936,2]
[389629193,1759759833904,-184.37416568,0.00015936,2]
[389629194,1759759833913,-3401.0,0.00015937,2]
[389629195,1759759833922,-788.0,0.00015937,2]
[389629196,1759759833931,-1265.0,0.00015937,2]
[389629197,1759759833941,-604.0,0.00015937,2]
[389629198,1759759833951,-570.0,0.00015937,2]
[389629199,1759759833960,-1586.0,0.00015937,2]
[389629200,1759759833971,-1307.0,0.00015937,2]
[389629201,1759759833980,-815.0,0.00015937,2]
[389629202,1759759833989,-1181.0,0.00015937,2]
[389629203,1759759833998,-2543.0,0.00015937,2]
[389629204,1759759834008,-160.85872426,0.00015943,2]
[389629205,1759759834017,-409.0,0.00015944,2]
[389629206,1759759834026,-1000.0,0.00016,2]
[389629207,1759759834036,-1000.0,0.00016,2]
[389629208,1759759834045,-1000.0,0.00016,2]
[389629209,1759759834055,-1000.0,0.00016,2]
[389629210,1759759834064,-1000.0,0.00016,2]
[389629211,1759759834074,-1000.0,0.00016,2]
[389629212,1759759834085,-1000.0,0.00016,2]
[389629213,1759759834095,-1000.0,0.00016,2]
[389629214,1759759834104,-1000.0,0.00016,2]
[389629215,1759759834114,-150.0,0.00016001,2]
[389629216,1759759834124,-168.0,0.00016067,2]
[389629217,1759759834133,-150.0,0.00016083,2]
[389629218,1759759834142,-900.0,0.00016137,2]
[389629219,1759759834152,-6239.0,0.00016137,2]
[389629220,1759759834161,-4117.0,0.00016137,2]
[389629221,1759759834170,-152.0,0.00016142,3]
[389629222,1759759834179,-500.0,0.00016164,2]
[389629223,1759759834189,-2928.66640791,0.00016238,2]
[389629224,1759759834198,-482.0,0.00016245,2]
[389629225,1759759834207,-1696.57797738,0.00016256,2]
[389629226,1759759834216,-369.91,0.00016257,2]
[389629227,1759759834225,-1696.57797735,0.00016265,2]
[389629228,1759759834235,-6900.24648636,0.0001627,2]
[389629229,1759759834249,-14069.15516739,0.0001627,2]
[389629230,1759759834258,-386.55268363,0.00016274,2]
[389629231,1759759834501,-1696.57797735,0.00016274,2]
[389629232,1759759834514,-21463.85423117,0.00016275,2]
[389629233,1759759834522,-77508.09275485,0.0001628,2]
[389629234,1759759834534,-203470.23870285,0.0001628,2]
[389629235,1759759834543,-1696.57797735,0.00016283,2]
[389629236,1759759834553,-13623.71799527,0.00016285,2]
[389629237,1759759834562,-466.91333787,0.00016286,2]
[389629238,1759759834572,-466.91333787,0.00016291,2]
[389629239,1759759834581,-1696.57797735,0.00016292,2]
[389629240,1759759834590,-13579.06064316,0.00016294,2]
[389629241,1759759834620,-1621.94596358,0.00016294,2]
[389629242,1759759834631,-1304.02963192,0.00016294,2]
[389629243,1759759834642,-4464.36541509,0.00016294,2]
[389629244,1759759834651,-15710.61630218,0.00016297,2]
[389629245,1759759834662,-1228.46384075,0.00016297,2]
[389629246,1759759834718,-4030.32151082,0.00016297,2]
[389629247,1759759834727,-1696.57797735,0.00016302,2]
[389629248,1759759834736,-4846.05056486,0.00016304,2]
[389629249,1759759834747,-22089.6905617,0.00016304,2]
[389629250,1759759834758,-11746.9624825,0.00016304,2]
[389629251,1759759834769,-12501.0,0.00016304,2]
[389629252,1759759834780,-1360.56294146,0.00016304,2]
[389629255,1759759838796,-500.0,0.00014998,2]
[389629256,1759759838808,-448.64,0.00014998,2]
[389629257,1759759838823,-51.36,0.00014998,2]
[389629258,1759759838835,-500.0,0.00014998,2]
[389629259,1759759838846,-500.0,0.00014998,2]
[389629260,1759759838859,-500.0,0.00014998,2]
[389629262,1759759838870,-500.0,0.00014998,2]
[389629263,1759759838882,-500.0,0.00014998,2]
[389629266,1759759838895,-500.0,0.00014998,2]
[389629268,1759759838906,-500.0,0.00014998,2]
[389629270,1759759838919,-500.0,0.00014998,2]
[389629272,1759759838931,-500.0,0.00014998,2]
[389629274,1759759838943,-500.0,0.00014998,2]
[389629276,1759759838956,-500.0,0.00014998,2]
[389629278,1759759838969,-500.0,0.00014998,2]
[389629281,1759759838982,-500.0,0.00014998,2]
[389629283,1759759838995,-351.63408737,0.00014998,2]
[389629285,1759759839006,-160.85872426,0.00016042,2]
[389629287,1759759839019,-621.0,0.00016137,2]
[389629288,1759759839031,-184.9603992,0.0001627,2]
[389629289,1759759839044,-219.75859528,0.00016294,2]
[389629290,1759759839056,-15110.05010584,0.00016304,2]
[389629291,1759759839071,-3063.62,0.00016304,2]
[389629292,1759759839085,-210260.39480134,0.00016304,2]
[389629293,1759759839097,-44454.35608683,0.00016305,2]
[389629294,1759759839109,-200.0,0.00016307,2]
[389629295,1759759839121,-21463.85423117,0.00016307,2]
[389629296,1759759839133,-1696.57797735,0.00016311,2]
[389629297,1759759839146,-466.91333787,0.00016312,2]
[389629298,1759759839159,-44454.35608683,0.00016316,2]
[389629299,1759759839171,-1696.57797735,0.0001632,2]
[389629300,1759759839184,-152.0,0.0001632,4]
[389629301,1759759839196,-13623.71799527,0.00016323,2]
[389629302,1759759839208,-466.91333787,0.00016327,2]
[389629303,1759759839220,-20969.40165375,0.00016328,2]
[389629304,1759759839233,-1696.57797735,0.00016329,2]
[389629305,1759759839245,-172.565,0.00016334,2]
[389629306,1759759839257,-2653.794,0.00016334,2]
[389629307,1759759839269,-13623.71799527,0.00016337,2]
[389629308,1759759839281,-212.90871018,0.00016337,2]
[389629309,1759759839294,-5694.9704,0.00016338,2]
[389629310,1759759839306,-5000.0,0.00016338,2]
[389629311,1759759839318,-1696.57797735,0.00016338,2]
[389629312,1759759839331,-241.87514879,0.00016338,2]
[389629313,1759759839343,-599.82097054,0.00016338,2]
[389629314,1759759839355,-280978.3314577,0.00016347,2]
[389629315,1759759839367,-21463.85423117,0.00016356,2]
[389629316,1759759839379,-386.55268363,0.00016356,2]
[389629317,1759759839390,-209306.04754717,0.00016357,2]
[389629318,1759759839570,-295.26,0.00016357,2]
[389629323,1759759840296,-160.85872426,0.0001614,2]
[389629324,1759759840308,-71377.02391053,0.00016357,2]
[389629325,1759759840319,-21463.85423117,0.00016361,2]
[389629326,1759759840331,-44454.35608683,0.00016366,2]
[389629327,1759759840344,-400.0,0.0001637,2]
[389629328,1759759840355,-466.91333787,0.00016371,2]
[389629329,1759759840365,-13623.71799527,0.00016373,2]
[389629330,1759759840374,-280978.3314577,0.00016376,2]
[389629331,1759759840384,-13623.71799527,0.00016378,2]
[389629332,1759759840393,-21463.85423117,0.00016386,2]
[389629333,1759759840403,-44454.35608683,0.00016387,2]
[389629334,1759759840412,-44454.35608683,0.00016389,2]
[389629335,1759759840422,-20969.40165375,0.00016389,2]
[389629336,1759759840432,-1000.0,0.00016399,2]
[389629337,1759759840441,-1647.15315072,0.000164,3]
[389629338,1759759840451,-5800.0,0.000164,2]
[389629339,1759759840460,-5800.0,0.000164,2]
[389629340,1759759840470,-386.55268363,0.00016411,2]
[389629341,1759759840479,-199.8061999,0.00016411,2]
[389629342,1759759840489,-150.0,0.00016411,2]
[389629343,1759759840501,-250.3876002,0.00016411,2]
[389629344,1759759840511,-208.273101,0.00016411,2]
[389629345,1759759840520,-199.17850062,0.00016411,2]
[389629346,1759759840530,-152.0477047,0.00016411,2]
[389629347,1759759840540,-150.0,0.00016411,2]
[389629349,1759759840549,-150.0,0.00016411,2]
[389629350,1759759840558,-150.0,0.00016411,2]
[389629352,1759759840568,-152.82905719,0.00016411,2]
[389629354,1759759840577,-150.0,0.00016411,2]
[389629355,1759759840589,-1339.37596423,0.00016424,2]
[389629356,1759759840598,-200.0,0.00016425,2]
[389629357,1759759840607,-182.464,0.00016425,2]
[389629360,1759759841012,-187.796,0.00016425,2]
[389629361,1759759841048,-207.517,0.00016425,2]
[389629362,1759759841069,-161.276,0.00016425,2]
[389629363,1759759841079,-208.633,0.00016425,2]
[389629364,1759759841090,-250.0,0.00016425,2]
[389629365,1759759841100,-158.0,0.00016425,2]
[389629366,1759759841110,-215.827,0.00016425,2]
[389629367,1759759841120,-150.0,0.00016428,2]
[389629368,1759759841130,-150.0,0.00016428,2]
[389629369,1759759841140,-150.0,0.00016428,2]
[389629370,1759759841150,-422.0,0.00016428,2]
[389629371,1759759841159,-150.0,0.00016428,2]
[389629372,1759759841169,-150.0,0.00016428,2]
[389629373,1759759841178,-448.0,0.00016428,2]
[389629374,1759759841187,-150.0,0.00016428,2]
[389629375,1759759841197,-176.65341908,0.00016428,2]
[389629376,1759759841206,-150.0,0.00016428,2]
[389629377,1759759841216,-150.0,0.00016428,2]
[389629378,1759759841226,-150.0,0.00016428,2]
[389629379,1759759841236,-500.0,0.00016428,2]
[389629380,1759759841246,-150.0,0.00016428,2]
[389629381,1759759841256,-3458.0,0.00016428,2]
[389629382,1759759841267,-150.0,0.00016428,2]
[389629383,1759759841277,-150.0,0.00016428,2]
[389629384,1759759841287,-150.0,0.00016428,2]
[389629385,1759759841296,-1479.0,0.00016428,2]
[389629386,1759759841306,-150.0,0.00016428,2]
[389629387,1759759841316,-500.0,0.00016428,2]
[389629388,1759759841326,-500.0,0.00016428,2]
[389629389,1759759841336,-150.0,0.00016428,2]
[389629390,1759759841346,-500.0,0.00016428,2]
[389629391,1759759841356,-150.0,0.00016428,2]
[389629392,1759759841366,-685.0,0.00016428,2]
[389629393,1759759841376,-634.0,0.00016428,2]
[389629394,1759759841386,-413.241498,0.0001643,5]
[389629395,1759759841395,-336.726755,0.0001643,5]
[389629396,1759759841405,-818.0,0.00016436,2]
[389629397,1759759841416,-17101.16,0.00016437,2]
[389629398,1759759841426,-7349.2518576,0.00016437,2]
[389629399,1759759841436,-151.0,0.00016437,2]
[389629400,1759759841445,-151.0,0.00016437,2]
[389629401,1759759841455,-151.0,0.00016437,2]
[389629402,1759759841465,-151.0,0.00016437,2]
[389629403,1759759841474,-151.0,0.00016437,2]
[389629404,1759759841484,-151.0,0.00016437,2]
[389629405,1759759841494,-151.0,0.00016437,2]
[389629406,1759759841515,-151.0,0.00016437,2]
[389629407,1759759841534,-151.289896,0.00016437,2]
[389629408,1759759841547,-151.0,0.00016437,2]
[389629409,1759759841557,-151.0,0.00016437,2]
[389629410,1759759841566,-151.0,0.00016437,2]
[389629411,1759759841576,-151.0,0.00016437,2]
[389629412,1759759841586,-151.0,0.00016437,2]
[389629413,1759759841596,-300.0,0.00016437,2]
[389629414,1759759841606,-500.0,0.00016437,2]
[389629415,1759759841616,-617.38731873,0.00016437,2]
[389629416,1759759841625,-179.00529582,0.00016437,2]
[389629417,1759759841635,-346086.33249767,0.00016437,2]
[389629418,1759759841644,-500.0,0.00016438,2]
[389629419,1759759841653,-500.0,0.00016438,2]
[389629420,1759759841662,-500.0,0.00016438,2]
[389629421,1759759841671,-431.95857273,0.00016438,2]
[389629422,1759759841680,-311.87838111,0.00016438,2]
[389629423,1759759841689,-150.0,0.00016438,2]
[389629424,1759759841698,-1282.50910982,0.00016438,2]
[389629425,1759759841707,-184.97495377,0.00016438,2]
[389629426,1759759841716,-150.0,0.00016438,2]
[389629427,1759759841725,-150.0,0.00016438,2]
[389629428,1759759841734,-10279.38129193,0.00016438,2]
[389629429,1759759841743,-1000.0,0.00016438,2]
[389629430,1759759841752,-1000.0,0.00016438,2]
[389629431,1759759841761,-1000.0,0.00016438,2]
[389629432,1759759841769,-1000.0,0.00016438,2]
[389629433,1759759841779,-1000.0,0.00016438,2]
[389629434,1759759841787,-1000.0,0.00016438,2]
[389629435,1759759841796,-1000.0,0.00016438,2]
[389629436,1759759841805,-1000.0,0.00016438,2]
[389629437,1759759841814,-1000.0,0.00016438,2]
[389629438,1759759841823,-1000.0,0.00016438,2]
[389629439,1759759841832,-1000.0,0.00016438,2]
[389629440,1759759841842,-1000.0,0.00016438,2]
[389629441,1759759841852,-1000.0,0.00016438,2]
[389629442,1759759841861,-1000.0,0.00016438,2]
[389629443,1759759841870,-1000.0,0.00016438,2]
[389629444,1759759841879,-1000.0,0.00016438,2]
[389629445,1759759841888,-1000.0,0.00016438,2]
[389629446,1759759841898,-1000.0,0.00016438,2]
[389629447,1759759841907,-1000.0,0.00016438,2]
[389629448,1759759841917,-1000.0,0.00016438,2]
[389629449,1759759841926,-1000.0,0.00016438,2]
[389629450,1759759841937,-1000.0,0.00016438,2]
[389629451,1759759841947,-1000.0,0.00016438,2]
[389629452,1759759841956,-1000.0,0.00016438,2]
[389629453,1759759841965,-1000.0,0.00016438,2]
[389629454,1759759841975,-1000.0,0.00016438,2]
[389629455,1759759841985,-735.81847986,0.00016438,2]
[389629456,1759759841994,-300.0,0.00016438,2]
[389629457,1759759842004,-300.0,0.00016438,2]
[389629458,1759759842014,-300.0,0.00016438,2]
[389629459,1759759842023,-300.0,0.00016438,2]
[389629460,1759759842033,-300.0,0.00016438,2]
[389629461,1759759842043,-300.0,0.00016438,2]
[389629462,1759759842054,-300.0,0.00016438,2]
[389629463,1759759842064,-300.0,0.00016438,2]
[389629464,1759759842073,-300.0,0.00016438,2]
[389629465,1759759842083,-300.0,0.00016438,2]
[389629466,1759759842094,-300.0,0.00016438,2]
[389629467,1759759842104,-300.0,0.00016438,2]
[389629468,1759759842114,-300.0,0.00016438,2]
[389629469,1759759842123,-300.0,0.00016438,2]
[389629470,1759759842134,-300.0,0.00016438,2]
[389629471,1759759842144,-300.0,0.00016438,2]
[389629472,1759759842154,-300.0,0.00016438,2]
[389629473,1759759842163,-300.0,0.00016438,2]
[389629474,1759759842173,-300.0,0.00016438,2]
[389629475,1759759842183,-300.0,0.00016438,2]
[389629476,1759759842192,-300.0,0.00016438,2]
[389629477,1759759842202,-300.0,0.00016438,2]
[389629478,1759759842211,-300.0,0.00016438,2]
[389629479,1759759842221,-300.0,0.00016438,2]
[389629480,1759759842230,-300.0,0.00016438,2]
[389629481,1759759842240,-300.0,0.00016438,2]
[389629482,1759759842249,-300.0,0.00016438,2]
[389629483,1759759842258,-300.0,0.00016438,2]
[389629484,1759759842268,-300.0,0.00016438,2]
[389629485,1759759842277,-300.0,0.00016438,2]
[389629486,1759759842287,-300.0,0.00016438,2]
[389629487,1759759842296,-300.0,0.00016438,2]
[389629488,1759759842305,-300.0,0.00016438,2]
[389629489,1759759842315,-300.0,0.00016438,2]
[389629490,1759759842324,-300.0,0.00016438,2]
[389629491,1759759842334,-300.0,0.00016438,2]
[389629492,1759759842345,-300.0,0.00016438,2]
[389629493,1759759842354,-300.0,0.00016438,2]
[389629494,1759759842365,-500.0,0.00016438,2]
[389629495,1759759842375,-503.13663013,0.00016438,2]
[389629496,1759759842385,-300.0,0.00016438,2]
[389629497,1759759842395,-300.0,0.00016438,2]
[389629498,1759759842404,-404.93963033,0.00016438,2]